fUST/lending_fUST_20250302
["ID","MTS","AMOUNT","RATE_DAILY","PERIOD"]
[355045981,1740880281202,-500.0,0.00025753,2]
[355045982,1740880281212,-43.38273346,0.00025753,2]
[355045983,1740880281553,-500.0,0.00024657,2]
[355045984,1740880281564,-500.0,0.00024657,2]
[355045985,1740880281574,-504.8597704,0.00024657,2]
[355045986,1740880281584,-500.0,0.00024931,2]
[355045987,1740880281594,-13.66499672,0.00025205,2]
[355045990,1740881156107,-159.40662982,0.00022873,2]
[355045992,1740881231113,-209.6390546,0.00022873,2]
[355045993,1740881242082,-90.3609454,0.00022873,2]
[355045994,1740881242104,-24047.84449491,0.00022874,2]
[355045995,1740881249084,-647.24480666,0.00022874,2]
[355045996,1740881251136,-194.39980918,0.00022874,2]
[355045997,1740881345250,-10.51088925,0.00022874,2]
[355045998,1740881367153,-184.009171,0.00022954,2]
[355045999,1740881395740,196.42744444,0.00022954,2]
[355046000,1740881396531,300.24,0.00025,30]
[355046001,1740881425906,153.15245724,0.00020774,2]
[355046002,1740881425928,65.85573385,0.00020774,2]
[355046031,1740881432826,-505.0,0.00022954,2]
[355046032,1740881432836,-313.94554525,0.00022954,2]
[355046033,1740881432847,-202.3174238,0.00023461,2]
[355046034,1740881432857,-289.89227738,0.00023629,2]
[355046035,1740881432877,-1149.42730572,0.00023629,2]
[355046036,1740881432888,-1033.07376056,0.000239,2]
[355046037,1740881432903,-373.7,0.0002393,3]
[355046038,1740881432912,-747.13308555,0.0002393,3]
[355046039,1740881432932,-0.31691445,0.0002393,3]
[355046040,1740881432941,-300.0,0.00023938,2]
[355046041,1740881432951,-186.22359048,0.00023939,2]
[355046042,1740881432961,-500.0,0.00023939,2]
[355046043,1740881432970,-500.0,0.00023939,2]
[355046044,1740881432980,-500.0,0.00023939,2]
[355046045,1740881432989,-322.714177,0.00023939,2]
[355046047,1740881433000,-16334.89672216,0.0002394,2]
[355046049,1740881433012,-6148.20780383,0.0002394,2]
[355046052,1740881433043,-1812.97019983,0.0002394,2]
[355046609,1740881438722,-26290.0950556,0.0002394,2]
[355046611,1740881438733,-171413.83021858,0.0002394,2]
[355046613,1740881438743,-256.8,0.00024,7]
[355046615,1740881438752,-1033.07376054,0.00024471,2]
[355046617,1740881438765,-226.68533313,0.00024656,2]
[355046619,1740881438774,-292.95162729,0.00024656,2]
[355046621,1740881438784,-508.35179859,0.00024657,2]
[355046624,1740881438793,-501.49252279,0.00024657,2]
[355046627,1740881438803,-500.0,0.00024657,2]
[355046630,1740881438812,-503.32981357,0.00024657,2]
[355046634,1740881438822,-205.2799675,0.00024657,2]
[355046636,1740881438831,-500.0,0.00024657,2]
[355046641,1740881438841,-496.31239813,0.00024657,2]
[355046644,1740881438850,-500.0,0.00024657,2]
[355046647,1740881438860,-500.0,0.00024657,2]
[355046649,1740881438868,-460.40740218,0.00024657,2]
[355046651,1740881438878,-500.0,0.00024657,2]
[355046655,1740881438888,-500.0,0.00024657,2]
[355046658,1740881438897,-580.09529654,0.00024657,2]
[355046660,1740881438908,-500.0,0.00024657,2]
[355046663,1740881438917,-500.0,0.00024657,2]
[355046668,1740881438927,-352.92857801,0.00024657,2]
[355046670,1740881438937,-500.0,0.00024657,2]
[355046672,1740881438946,-500.0,0.00024657,2]
[355046674,1740881438955,-500.0,0.00024657,2]
[355046676,1740881438966,-500.0,0.00024657,2]
[355046678,1740881438977,-500.0,0.00024657,2]
[355046680,1740881438987,-729.98,0.00024657,2]
[355046682,1740881438997,-1030.85,0.00024657,2]
[355046684,1740881439006,-505.94888308,0.00024657,2]
[355046686,1740881439016,-500.0,0.00024657,2]
[355046688,1740881439025,-500.0,0.00024657,2]
[355046690,1740881439034,-506.915732,0.00024657,2]
[355046692,1740881439044,-509.57646936,0.00024657,2]
[355046694,1740881439055,-500.0,0.00024657,2]
[355046696,1740881439064,-500.0,0.00024657,2]
[355046698,1740881439073,-740.07,0.00024657,2]
[355046700,1740881439083,-500.0,0.00024657,2]
[355046702,1740881439092,-500.0,0.00024657,2]
[355046704,1740881439101,-504.89820815,0.00024657,2]
[355046706,1740881439111,-500.0,0.00024657,2]
[355046708,1740881439120,-500.0,0.00024657,2]
[355046710,1740881439130,-538.88071805,0.00024657,2]
[355046712,1740881439139,-500.0,0.00024657,2]
[355046714,1740881439149,-500.0,0.00024657,2]
[355046716,1740881439161,-500.0,0.00024657,2]
[355046718,1740881439171,-500.0,0.00024657,2]
[355046720,1740881439181,-501.57505111,0.00024657,2]
[355046722,1740881439190,-500.0,0.00024657,2]
[355046724,1740881439201,-500.0,0.00024657,2]
[355046726,1740881439211,-500.0,0.00024657,2]
[355046728,1740881439222,-500.0,0.00024657,2]
[355046730,1740881439232,-568.58,0.00024657,2]
[355046732,1740881439243,-1561.57,0.00024657,2]
[355046734,1740881439252,-500.0,0.00024657,2]
[355046736,1740881439263,-505.93038448,0.00024657,2]
[355046738,1740881439273,-500.0,0.00024657,2]
[355046740,1740881439282,-506.38686102,0.00024657,2]
[355046742,1740881439292,-500.0,0.00024657,2]
[355046744,1740881439302,-1217.99,0.00024657,2]
[355046746,1740881439311,-500.0,0.00024657,2]
[355046748,1740881439320,-500.0,0.00024657,2]
[355046750,1740881439330,-500.0,0.00024657,2]
[355046752,1740881439339,-500.0,0.00024657,2]
[355046754,1740881439349,-500.0,0.00024657,2]
[355046756,1740881439359,-517.32131114,0.00024657,2]
[355046758,1740881439368,-500.0,0.00024657,2]
[355046760,1740881439378,-500.0,0.00024657,2]
[355046762,1740881439387,-500.0,0.00024657,2]
[355046764,1740881439396,-1237.78,0.00024657,2]
[355046766,1740881439409,-873.01,0.00024657,2]
[355046768,1740881439419,-500.0,0.00024657,2]
[355046770,1740881439429,-500.0,0.00024657,2]
[355046771,1740881439439,-601.68,0.00024657,2]
[355046773,1740881439449,-500.0,0.00024657,2]
[355046775,1740881439460,-500.0,0.00024657,2]
[355046778,1740881439471,-511.52527959,0.00024657,2]
[355046780,1740881439481,-812.01,0.00024657,2]
[355046782,1740881439491,-500.0,0.00024657,2]
[355046784,1740881439501,-500.0,0.00024657,2]
[355046786,1740881439511,-500.0,0.00024657,2]
[355046788,1740881439520,-242.96734454,0.00024657,2]
[355046790,1740881439530,-500.0,0.00024657,2]
[355046792,1740881439541,-602.72,0.00024657,2]
[355046794,1740881439551,-500.0,0.00024657,2]
[355046796,1740881439560,-500.0,0.00024657,2]
[355046798,1740881439570,-500.0,0.00024657,2]
[355046800,1740881439580,-500.0,0.00024657,2]
[355046802,1740881439590,-500.0,0.00024657,2]
[355046804,1740881439599,-500.0,0.00024657,2]
[355046806,1740881439610,-500.0,0.00024657,2]
[355046807,1740881439619,-500.0,0.00024657,2]
[355046809,1740881439630,-500.0,0.00024657,2]
[355046812,1740881439640,-153.87893157,0.00024657,2]
[355046814,1740881439650,-500.0,0.00024657,2]
[355046815,1740881439666,-500.0,0.00024657,2]
[355046817,1740881439676,-500.0,0.00024657,2]
[355046820,1740881439687,-500.0,0.00024657,2]
[355046821,1740881439697,-500.0,0.00024657,2]
[355046823,1740881439707,-500.0,0.00024657,2]
[355046825,1740881439717,-500.0,0.00024657,2]
[355046827,1740881439727,-500.0,0.00024657,2]
[355046830,1740881439738,-500.0,0.00024657,2]
[355046831,1740881439749,-500.0,0.00024657,2]
[355046833,1740881439761,-500.0,0.00024657,2]
[355046835,1740881439771,-500.0,0.00024657,2]
[355046837,1740881439782,-500.0,0.00024657,2]
[355046839,1740881439791,-500.0,0.00024657,2]
[355046841,1740881439802,-500.0,0.00024657,2]
[355046842,1740881439812,-503.86199769,0.00024657,2]
[355046843,1740881439822,-659.29,0.00024657,2]
[355046844,1740881439832,-973.36,0.00024657,2]
[355046845,1740881439843,-500.0,0.00024657,2]
[355046846,1740881439853,-500.0,0.00024657,2]
[355046847,1740881439862,-500.0,0.00024657,2]
[355046848,1740881439872,-500.0,0.00024657,2]
[355046849,1740881439881,-759.22,0.00024657,2]
[355046850,1740881439891,-500.0,0.00024657,2]
[355046851,1740881439900,-500.0,0.00024657,2]
[355046852,1740881439912,-500.0,0.00024657,2]
[355046854,1740881439922,-500.0,0.00024657,2]
[355046856,1740881439932,-500.0,0.00024657,2]
[355046858,1740881439942,-500.0,0.00024657,2]
[355046860,1740881439951,-500.0,0.00024657,2]
[355046862,1740881439963,-583.6,0.00024657,2]
[355046864,1740881439972,-500.0,0.00024657,2]
[355046866,1740881439981,-500.0,0.00024657,2]
[355046868,1740881439991,-500.0,0.00024657,2]
[355046870,1740881440001,-632.47751573,0.00024657,2]
[355046872,1740881440011,-509.7952113,0.00024657,2]
[355046874,1740881440020,-500.0,0.00024657,2]
[355046876,1740881440031,-526.83,0.00024657,2]
[355046878,1740881440040,-510.31263693,0.00024657,2]
[355046880,1740881440050,-512.222438,0.00024657,2]
[355046882,1740881440059,-1082.47,0.00024657,2]
[355046884,1740881440068,-500.0,0.00024657,2]
[355046886,1740881440078,-500.0,0.00024657,2]
[355046888,1740881440087,-500.0,0.00024657,2]
[355046890,1740881440097,-500.0,0.00024657,2]
[355046892,1740881440107,-500.0,0.00024657,2]
[355046894,1740881440116,-710.93,0.00024657,2]
[355046896,1740881440126,-500.0,0.00024657,2]
[355046898,1740881440135,-500.0,0.00024657,2]
[355046900,1740881440145,-500.0,0.00024657,2]
[355046902,1740881440155,-500.0,0.00024657,2]
[355046904,1740881440165,-502.5,0.00024657,2]
[355046906,1740881440174,-500.0,0.00024657,2]
[355046908,1740881440183,-607.78,0.00024657,2]
[355046910,1740881440194,-500.0,0.00024657,2]
[355046912,1740881440203,-1662.64,0.00024657,2]
[355046914,1740881440213,-500.0,0.00024657,2]
[355046916,1740881440223,-511.57086965,0.00024657,2]
[355046918,1740881440232,-501.42066931,0.00024657,2]
[355046920,1740881440242,-500.0,0.00024657,2]
[355046922,1740881440252,-510.8775791,0.00024657,2]
[355046924,1740881440261,-500.0,0.00024657,2]
[355046926,1740881440271,-964.95,0.00024657,2]
[355046928,1740881440281,-1574.77,0.00024657,2]
[355046930,1740881440290,-1711.03,0.00024657,2]
[355046932,1740881440300,-500.0,0.00024657,2]
[355046934,1740881440309,-500.0,0.00024657,2]
[355046936,1740881440319,-500.0,0.00024657,2]
[355046938,1740881440329,-500.0,0.00024657,2]
[355046940,1740881440339,-500.0,0.00024657,2]
[355046942,1740881440350,-966.57,0.00024657,2]
[355046944,1740881440359,-343.47792291,0.00024657,2]
[355046946,1740881440369,-500.0,0.00024657,2]
[355046948,1740881440379,-500.0,0.00024657,2]
[355046950,1740881440389,-500.0,0.00024657,2]
[355046952,1740881440398,-500.0,0.00024657,2]
[355046955,1740881440410,-1589.39,0.00024657,2]
[355046957,1740881440420,-760.11,0.00024657,2]
[355046959,1740881440429,-500.0,0.00024657,2]
[355046961,1740881440438,-500.0,0.00024657,2]
[355046963,1740881440448,-500.0,0.00024657,2]
[355046965,1740881440457,-500.0,0.00024657,2]
[355046967,1740881440467,-500.0,0.00024657,2]
[355046969,1740881440477,-689.45,0.00024657,2]
[355046971,1740881440488,-500.0,0.00024657,2]
[355046973,1740881440498,-500.0,0.00024657,2]
[355046975,1740881440507,-500.0,0.00024657,2]
[355046977,1740881440517,-500.0,0.00024657,2]
[355046979,1740881440526,-500.0,0.00024657,2]
[355046981,1740881440536,-512.32,0.00024657,2]
[355046983,1740881440545,-500.0,0.00024657,2]
[355046985,1740881440555,-519.24,0.00024657,2]
[355046987,1740881440564,-500.0,0.00024657,2]
[355046989,1740881440573,-500.0,0.00024657,2]
[355046991,1740881440582,-500.0,0.00024657,2]
[355046993,1740881440592,-500.0,0.00024657,2]
[355046995,1740881440602,-500.0,0.00024657,2]
[355046997,1740881440612,-200.0,0.00024657,2]
[355046999,1740881440622,-500.0,0.00024657,2]
[355047001,1740881440631,-847.79,0.00024657,2]
[355047003,1740881440640,-508.64132363,0.00024657,2]
[355047005,1740881440650,-500.0,0.00024657,2]
[355047007,1740881440660,-500.0,0.00024657,2]
[355047009,1740881440670,-500.0,0.00024657,2]
[355047011,1740881440679,-500.0,0.00024657,2]
[355047013,1740881440689,-1071.65,0.00024657,2]
[355047015,1740881440698,-500.0,0.00024657,2]
[355047017,1740881440707,-500.0,0.00024657,2]
[355047019,1740881440716,-753.24,0.00024657,2]
[355047022,1740881440727,-500.0,0.00024657,2]
[355047024,1740881440737,-500.0,0.00024657,2]
[355047026,1740881440747,-1774.72,0.00024657,2]
[355047028,1740881440761,-500.0,0.00024657,2]
[355047030,1740881440771,-500.0,0.00024657,2]
[355047032,1740881440780,-500.0,0.00024657,2]
[355047034,1740881440789,-255.83115321,0.00024657,2]
[355047036,1740881440799,-500.0,0.00024657,2]
[355047038,1740881440808,-500.0,0.00024657,2]
[355047040,1740881440817,-500.0,0.00024657,2]
[355047042,1740881440827,-632.38,0.00024657,2]
[355047044,1740881440837,-500.0,0.00024657,2]
[355047046,1740881440847,-1108.52,0.00024657,2]
[355047048,1740881440856,-500.0,0.00024657,2]
[355047050,1740881440865,-500.0,0.00024657,2]
[355047052,1740881440875,-500.0,0.00024657,2]
[355047054,1740881440885,-500.0,0.00024657,2]
[355047055,1740881440896,-500.0,0.00024657,2]
[355047057,1740881440910,-500.0,0.00024657,2]
[355047060,1740881440920,-500.0,0.00024657,2]
[355047062,1740881440930,-488.73292691,0.00024657,2]
[355047064,1740881440940,-500.0,0.00024657,2]
[355047066,1740881440950,-1057.22,0.00024657,2]
[355047068,1740881440959,-500.0,0.00024657,2]
[355047070,1740881440969,-593.06,0.00024657,2]
[355047072,1740881440979,-500.0,0.00024657,2]
[355047074,1740881440991,-500.0,0.00024657,2]
[355047076,1740881441001,-508.98671416,0.00024657,2]
[355047078,1740881441011,-502.25454984,0.00024657,2]
[355047080,1740881441020,-500.0,0.00024657,2]
[355047081,1740881441030,-500.0,0.00024657,2]
[355047083,1740881441041,-500.0,0.00024657,2]
[355047086,1740881441051,-500.0,0.00024657,2]
[355047088,1740881441061,-500.0,0.00024657,2]
[355047090,1740881441071,-561.79,0.00024657,2]
[355047092,1740881441080,-500.0,0.00024657,2]
[355047095,1740881441089,-500.0,0.00024657,2]
[355047097,1740881441099,-500.0,0.00024657,2]
[355047100,1740881441109,-500.0,0.00024657,2]
[355047103,1740881441119,-512.5,0.00024657,2]
[355047105,1740881441128,-536.53770525,0.00024657,2]
[355047107,1740881441138,-501.62772906,0.00024657,2]
[355047109,1740881441147,-2662.96,0.00024657,2]
[355047111,1740881441158,-500.0,0.00024657,2]
[355047113,1740881441167,-500.0,0.00024657,2]
[355047115,1740881441176,-506.13523952,0.00024657,2]
[355047117,1740881441186,-630.74,0.00024657,2]
[355047119,1740881441195,-500.0,0.00024657,2]
[355047121,1740881441205,-500.0,0.00024657,2]
[355047123,1740881441214,-508.7885546,0.00024657,2]
[355047125,1740881441223,-500.0,0.00024657,2]
[355047127,1740881441233,-514.81,0.00024657,2]
[355047129,1740881441242,-501.94231743,0.00024657,2]
[355047131,1740881441251,-500.0,0.00024657,2]
[355047133,1740881441261,-500.0,0.00024657,2]
[355047135,1740881441270,-1813.2,0.00024657,2]
[355047137,1740881441279,-500.0,0.00024657,2]
[355047139,1740881441288,-500.0,0.00024657,2]
[355047141,1740881441299,-1207.28,0.00024657,2]
[355047143,1740881441309,-888.81,0.00024657,2]
[355047145,1740881441319,-500.0,0.00024657,2]
[355047147,1740881441329,-1890.33,0.00024657,2]
[355047149,1740881441340,-500.0,0.00024657,2]
[355047151,1740881441350,-507.91148453,0.00024657,2]
[355047153,1740881441360,-500.0,0.00024657,2]
[355047155,1740881441370,-500.0,0.00024657,2]
[355047157,1740881441379,-500.0,0.00024657,2]
[355047159,1740881441389,-500.0,0.00024657,2]
[355047161,1740881441398,-500.0,0.00024657,2]
[355047163,1740881441410,-1006.16,0.00024657,2]
[355047165,1740881441419,-500.0,0.00024657,2]
[355047167,1740881441429,-500.0,0.00024657,2]
[355047169,1740881441438,-554.05,0.00024657,2]
[355047171,1740881441447,-500.0,0.00024657,2]
[355047174,1740881441467,-567.35,0.00024657,2]
[355047176,1740881441476,-500.0,0.00024657,2]
[355047178,1740881441485,-508.11984674,0.00024657,2]
[355047180,1740881441494,-500.0,0.00024657,2]
[355047182,1740881441504,-500.0,0.00024657,2]
[355047184,1740881441514,-500.0,0.00024657,2]
[355047186,1740881441523,-500.0,0.00024657,2]
[355047188,1740881441532,-500.0,0.00024657,2]
[355047190,1740881441542,-500.0,0.00024657,2]
[355047192,1740881441551,-503.26274646,0.00024657,2]
[355047194,1740881441560,-500.0,0.00024657,2]
[355047196,1740881441569,-455.26537476,0.00024657,2]
[355047198,1740881441579,-500.0,0.00024657,2]
[355047200,1740881441588,-500.0,0.00024657,2]
[355047202,1740881441597,-500.0,0.00024657,2]
[355047204,1740881441606,-500.0,0.00024657,2]
[355047206,1740881441617,-500.0,0.00024657,2]
[355047208,1740881441627,-500.0,0.00024657,2]
[355047210,1740881441637,-500.0,0.00024657,2]
[355047212,1740881441646,-2368.56,0.00024657,2]
[355047214,1740881441657,-1730.45,0.00024657,2]
[355047216,1740881441667,-500.0,0.00024657,2]
[355047217,1740881441676,-500.0,0.00024657,2]
[355047218,1740881441686,-1345.23,0.00024657,2]
[355047219,1740881441696,-500.0,0.00024657,2]
[355047220,1740881441705,-943.33,0.00024657,2]
[355047221,1740881441715,-500.0,0.00024657,2]
[355047222,1740881441725,-500.0,0.00024657,2]
[355047223,1740881441735,-500.0,0.00024657,2]
[355047224,1740881441744,-1216.37,0.00024657,2]
[355047225,1740881441758,-500.0,0.00024657,2]
[355047226,1740881441768,-643.25,0.00024657,2]
[355047227,1740881441777,-658.63,0.00024657,2]
[355047228,1740881441787,-503.90502587,0.00024657,2]
[355047229,1740881441798,-1391.79,0.00024657,2]
[355047231,1740881441807,-1067.53,0.00024657,2]
[355047233,1740881441817,-506.87221877,0.00024657,2]
[355047235,1740881441833,-500.0,0.00024657,2]
[355047263,1740881442092,-504.59265829,0.00024657,2]
[355047266,1740881442102,-2536.9,0.00024657,2]
[355047268,1740881442113,-500.0,0.00024657,2]
[355047270,1740881442123,-762.05,0.00024657,2]
[355047272,1740881442132,-500.0,0.00024657,2]
[355047274,1740881442142,-500.0,0.00024657,2]
[355047276,1740881442152,-500.0,0.00024657,2]
[355047278,1740881442163,-500.0,0.00024657,2]
[355047280,1740881442172,-500.0,0.00024657,2]
[355047282,1740881442186,-500.0,0.00024657,2]
[355047284,1740881442196,-500.0,0.00024657,2]
[355047286,1740881442205,-500.0,0.00024657,2]
[355047288,1740881442214,-500.0,0.00024657,2]
[355047290,1740881442224,-859.63,0.00024657,2]
[355047292,1740881442233,-765.88,0.00024657,2]
[355047294,1740881442244,-500.0,0.00024657,2]
[355047296,1740881442254,-514.9302193,0.00024657,2]
[355047298,1740881442263,-1047.63,0.00024657,2]
[355047300,1740881442272,-500.0,0.00024657,2]
[355047302,1740881442281,-248.14206749,0.00024657,2]
[355047304,1740881442291,-500.0,0.00024657,2]
[355047306,1740881442300,-888.74,0.00024657,2]
[355047308,1740881442309,-500.55376966,0.00024657,2]
[355047310,1740881442318,-795.59,0.00024657,2]
[355047312,1740881442328,-500.0,0.00024657,2]
[355047314,1740881442337,-500.0,0.00024657,2]
[355047316,1740881442346,-539.51551052,0.00024657,2]
[355047318,1740881442356,-773.05,0.00024657,2]
[355047320,1740881442367,-500.0,0.00024657,2]
[355047322,1740881442376,-500.0,0.00024657,2]
[355047324,1740881442386,-500.0,0.00024657,2]
[355047326,1740881442395,-3382.52,0.00024657,2]
[355047328,1740881442405,-500.0,0.00024657,2]
[355047330,1740881442416,-500.0,0.00024657,2]
[355047332,1740881442425,-500.0,0.00024657,2]
[355047334,1740881442434,-500.0,0.00024657,2]
[355047336,1740881442443,-500.0,0.00024657,2]
[355047338,1740881442453,-500.0,0.00024657,2]
[355047340,1740881442462,-500.0,0.00024657,2]
[355047342,1740881442471,-508.66458699,0.00024657,2]
[355047344,1740881442480,-500.0,0.00024657,2]
[355047346,1740881442491,-504.09371503,0.00024657,2]
[355047348,1740881442500,-500.0,0.00024657,2]
[355047350,1740881442510,-500.48,0.00024657,2]
[355047352,1740881442520,-514.78,0.00024657,2]
[355047354,1740881442529,-2217.85,0.00024657,2]
[355047356,1740881442538,-1049.86,0.00024657,2]
[355047358,1740881442548,-500.0,0.00024657,2]
[355047360,1740881442557,-500.0,0.00024657,2]
[355047362,1740881442566,-503.75,0.00024657,2]
[355047364,1740881442577,-500.0,0.00024657,2]
[355047366,1740881442587,-500.0,0.00024657,2]
[355047368,1740881442596,-837.3,0.00024657,2]
[355047370,1740881442606,-500.0,0.00024657,2]
[355047371,1740881442615,-1100.82,0.00024657,2]
[355047372,1740881442627,-500.0,0.00024657,2]
[355047373,1740881442636,-500.0,0.00024657,2]
[355047374,1740881442645,-500.0,0.00024657,2]
[355047375,1740881442654,-500.0,0.00024657,2]
[355047376,1740881442663,-500.0,0.00024657,2]
[355047377,1740881442673,-1841.58,0.00024657,2]
[355047378,1740881442682,-197714.3,0.00024657,2]
[355047379,1740881442691,-234.83147696,0.00024657,2]
[355047380,1740881442701,-500.0,0.00024657,2]
[355047381,1740881442710,-500.0,0.00024657,2]
[355047382,1740881442719,-1503.34,0.00024657,2]
[355047383,1740881442728,-500.0,0.00024657,2]
[355047384,1740881442738,-3815.29,0.00024657,2]
[355047385,1740881442747,-500.0,0.00024657,2]
[355047386,1740881442758,-500.0,0.00024657,2]
[355047387,1740881442770,-500.0,0.00024657,2]
[355047388,1740881442779,-721.67,0.00024657,2]
[355047389,1740881442789,-500.0,0.00024657,2]
[355047390,1740881442798,-500.0,0.00024657,2]
[355047391,1740881442809,-4324.16,0.00024657,2]
[355047392,1740881442819,-1770.26,0.00024657,2]
[355047393,1740881442828,-1540.63,0.00024657,2]
[355047394,1740881442838,-2449.14,0.00024657,2]
[355047395,1740881442848,-691.24,0.00024657,2]
[355047397,1740881442857,-500.0,0.00024657,2]
[355047399,1740881442867,-500.0,0.00024657,2]
[355047401,1740881442877,-500.0,0.00024657,2]
[355047403,1740881442886,-500.0,0.00024657,2]
[355047405,1740881442895,-1948.16,0.00024657,2]
[355047407,1740881442906,-1215.98,0.00024657,2]
[355047409,1740881442915,-595.6,0.00024657,2]
[355047411,1740881442926,-500.0,0.00024657,2]
[355047413,1740881442936,-2210.9,0.00024657,2]
[355047415,1740881442946,-320.27103395,0.00024657,2]
[355047417,1740881442955,-1071.32,0.00024657,2]
[355047419,1740881442966,-715.03,0.00024657,2]
[355047421,1740881442975,-2425.59,0.00024657,2]
[355047423,1740881442985,-500.0,0.00024657,2]
[355047425,1740881442995,-500.0,0.00024657,2]
[355047427,1740881443005,-500.0,0.00024657,2]
[355047429,1740881443015,-3935.03,0.00024657,2]
[355047431,1740881443025,-3935.03,0.00024657,2]
[355047433,1740881443035,-500.0,0.00024657,2]
[355047435,1740881443045,-500.0,0.00024657,2]
[355047437,1740881443054,-3935.03,0.00024657,2]
[355047439,1740881443064,-3935.03,0.00024657,2]
[355047442,1740881443074,-3935.03,0.00024657,2]
[355047444,1740881443083,-3935.03,0.00024657,2]
[355047446,1740881443093,-500.0,0.00024657,2]
[355047448,1740881443103,-500.0,0.00024657,2]
[355047450,1740881443113,-3935.03,0.00024657,2]
[355047451,1740881443122,-3935.03,0.00024657,2]
[355047452,1740881443132,-3935.03,0.00024657,2]
[355047453,1740881443142,-3935.03,0.00024657,2]
[355047454,1740881443151,-3935.03,0.00024657,2]
[355047455,1740881443164,-3935.03,0.00024657,2]
[355047456,1740881443175,-3935.03,0.00024657,2]
[355047457,1740881443184,-5492.9,0.00024657,2]
[355047458,1740881443194,-3935.03,0.00024657,2]
[355047459,1740881443205,-3935.03,0.00024657,2]
[355047461,1740881443215,-3935.03,0.00024657,2]
[355047463,1740881443225,-659.63,0.00024657,2]
[355047465,1740881443234,-3935.03,0.00024657,2]
[355047467,1740881443243,-3935.03,0.00024657,2]
[355047469,1740881443253,-3935.03,0.00024657,2]
[355047471,1740881443263,-3935.03,0.00024657,2]
[355047473,1740881443272,-505.27436091,0.00024657,2]
[355047475,1740881443282,-3935.03,0.00024657,2]
[355047477,1740881443292,-3935.03,0.00024657,2]
[355047479,1740881443301,-3935.03,0.00024657,2]
[355047482,1740881443311,-4402.76,0.00024657,2]
[355047486,1740881443321,-3935.0927186,0.00024657,2]
[355047488,1740881443331,-500.0,0.00024657,2]
[355047493,1740881443340,-500.0,0.00024657,2]
[355047494,1740881443350,-1651.05,0.00024657,2]
[355047500,1740881443360,-500.0,0.00024657,2]
[355047503,1740881443369,-500.0,0.00024657,2]
[355047505,1740881443379,-630.08,0.00024657,2]
[355047507,1740881443389,-500.0,0.00024657,2]
[355047509,1740881443399,-500.0,0.00024657,2]
[355047511,1740881443410,-500.0,0.00024657,2]
[355047513,1740881443420,-5583.11,0.00024657,2]
[355047514,1740881443429,-307.6298593,0.00024657,2]
[355047515,1740881443439,-500.0,0.00024657,2]
[355047516,1740881443448,-500.0,0.00024657,2]
[355047517,1740881443457,-1220.82,0.00024657,2]
[355047518,1740881443467,-1644.43,0.00024657,2]
[355047520,1740881443477,-500.0,0.00024657,2]
[355047522,1740881443486,-500.0,0.00024657,2]
[355047524,1740881443496,-784.43,0.00024657,2]
[355047526,1740881443505,-500.0,0.00024657,2]
[355047528,1740881443514,-500.0,0.00024657,2]
[355047530,1740881443523,-582.03,0.00024657,2]